bitfinex/quotes_BTCUSD_20251224
["timestamp","ask_amount","ask_price","bid_price","bid_amount"]
[1766605831625,0.05707827,87599.0,87590.0,0.03426928]
[1766605831626,0.0114163,87594.0,87590.0,0.03426928]
[1766605831825,0.01141565,87599.0,87595.0,0.22056]
[1766605832030,0.01141643,87593.0,87591.0,0.01144]
[1766605832295,0.01141643,87593.0,87589.0,0.01144]
[1766605832296,0.06857254,87593.0,87589.0,0.01144]
[1766605832429,0.000549,87591.0,87589.0,0.01144]
[1766605832834,0.01141656,87592.0,87589.0,0.01144]
[1766605833288,0.01141669,87591.0,87583.0,0.22056]
[1766605833468,0.06850063,87591.0,87587.0,0.01144]
[1766605833671,0.01141669,87591.0,87587.0,0.01144]
[1766605834095,2.67e-06,87593.0,87592.0,0.22056]
[1766605834233,4.5e-06,87597.0,87592.0,0.22056]
[1766605837087,4.5e-06,87597.0,87592.0,0.19804126]
[1766605837299,0.05708169,87594.0,87592.0,0.19749226]
[1766605837505,0.01141734,87586.0,87583.0,0.23395]
[1766605837706,0.01141734,87586.0,87574.0,0.24539]
[1766605838023,0.01141748,87585.0,87574.0,0.24539]
[1766605838186,0.05708909,87583.0,87574.0,0.24539]
[1766605838395,0.05708909,87583.0,87557.0,0.22842078]
[1766605838396,0.01141891,87574.0,87566.0,0.23395]
[1766605838602,0.0685164,87571.0,87566.0,0.01150056]
[1766605838845,0.0114193,87571.0,87566.0,6.056e-05]
[1766605839043,0.0685151,87572.0,87566.0,6.056e-05]
[1766605839268,0.0114193,87571.0,87566.0,6.056e-05]
[1766605839476,0.01141917,87572.0,87566.0,6.056e-05]
[1766605839639,0.01141904,87573.0,87566.0,6.056e-05]
[1766605840003,0.06851444,87573.0,87566.0,6.056e-05]
[1766605840490,0.0685159,87571.0,87566.0,6.056e-05]
[1766605840620,0.05709744,87570.0,87566.0,6.056e-05]
[1766605840824,0.01141956,87569.0,87566.0,6.056e-05]
[1766605841029,0.06851687,87570.0,87566.0,6.056e-05]
[1766605841438,0.0114206,87561.0,87548.0,0.0114223]
[1766605841752,0.01142008,87565.0,87554.0,0.01154607]
[1766605841753,0.01142034,87563.0,87554.0,0.01154607]
[1766605842340,0.01142021,87564.0,87554.0,0.01154607]
[1766605843538,0.01142008,87565.0,87554.0,0.01154607]
[1766605843735,0.01144,87564.0,87554.0,0.25691759]
[1766605843888,0.01144,87564.0,87554.0,0.24549607]
[1766605844089,0.01144,87564.0,87554.0,0.25691759]
[1766605844294,0.010891,87564.0,87557.0,0.01142113]
[1766605844611,0.010891,87564.0,87559.0,0.29105416]
[1766605844815,0.010891,87564.0,87560.0,0.01142074]
[1766605844979,0.010891,87564.0,87560.0,0.24537074]
[1766605845180,0.01144,87566.0,87560.0,0.23395]
[1766605846668,0.01144,87567.0,87560.0,0.23395]
[1766605846798,0.01144,87570.0,87560.0,0.23395]
[1766605847543,0.02285943,87570.0,87560.0,0.23395]
[1766605847943,0.01144,87570.0,87560.0,0.23395]
[1766605848735,0.01144,87570.0,87562.0,0.23395]
[1766605851450,0.01144,87572.0,87564.0,0.23395]
[1766605851613,0.01144,87577.0,87565.0,0.23395]
[1766605851809,0.02285852,87577.0,87565.0,0.23395]
[1766605852069,0.01141878,87575.0,87566.0,0.23395]
[1766605852271,0.01144,87581.0,87564.0,0.01144]
[1766605852272,0.000549,87566.0,87564.0,0.01144]
[1766605852478,0.000549,87566.0,87560.0,0.23395]
[1766605852636,0.000549,87566.0,87561.0,0.01144]
[1766605852833,0.01141956,87569.0,87561.0,0.01144]
[1766605853036,0.01141969,87568.0,87561.0,0.01144]
[1766605853248,0.06851826,87568.0,87561.0,0.01144]
[1766605853887,0.01141969,87568.0,87561.0,0.01144]
[1766605854373,0.000549,87561.0,87559.0,0.01144]
[1766605855126,0.06852185,87564.0,87559.0,0.01144]
[1766605855311,0.06852099,87565.0,87559.0,0.01144]
[1766605855510,0.05709948,87567.0,87559.0,0.01144]
[1766605855688,0.0685188,87568.0,87559.0,0.01144]
[1766605856707,0.01141943,87570.0,87560.0,0.23395]
[1766605856901,0.06851697,87570.0,87560.0,0.23395]
[1766605857461,0.05709787,87569.0,87560.0,0.23395]
[1766605857596,0.06851697,87570.0,87560.0,0.23395]
[1766605857798,0.01141956,87569.0,87560.0,0.23395]
[1766605858479,0.06851697,87570.0,87560.0,0.23395]
[1766605858671,0.01141956,87569.0,87560.0,0.23395]
[1766605859384,0.0685174,87569.0,87560.0,0.23395]
[1766605860169,0.01141956,87569.0,87560.0,0.23395]
[1766605860401,0.01141969,87568.0,87560.0,0.23395]
[1766605860724,0.06851838,87568.0,87560.0,0.23395]
[1766605861827,0.01141969,87568.0,87560.0,0.23395]
[1766605862796,0.01142021,87564.0,87554.0,0.00010607]
[1766605862997,0.05709867,87568.0,87559.0,0.17348]
[1766605862998,0.01142008,87565.0,87559.0,0.17348]
[1766605863383,0.01141982,87567.0,87559.0,0.17348]
[1766605863599,0.01141995,87566.0,87559.0,0.17348]
[1766605863798,0.01141943,87570.0,87559.0,0.17348]
[1766605863998,0.06851751,87569.0,87559.0,0.17348]
[1766605864202,0.01141943,87570.0,87559.0,0.17348]
[1766605864449,0.01141956,87569.0,87559.0,0.17348]
[1766605864649,0.06851587,87571.0,87559.0,0.17348]
[1766605865629,0.01141943,87570.0,87559.0,0.17348]
[1766605865872,0.01141956,87569.0,87559.0,0.17348]
[1766605866110,0.06851668,87570.0,87559.0,0.17348]
[1766605866558,0.06851757,87569.0,87559.0,0.17348]
[1766605866772,0.01141943,87570.0,87559.0,0.17348]
[1766605867930,0.0114193,87571.0,87559.0,0.17348]
[1766605868138,0.05709139,87579.0,87566.0,0.17348]
[1766605868339,0.01144,87578.0,87567.0,0.17348]
[1766605868607,0.01141852,87577.0,87567.0,0.17348]
[1766605869149,0.01141891,87574.0,87567.0,0.17348]
[1766605869350,0.01141865,87576.0,87564.0,0.01144]
[1766605869551,0.01141865,87576.0,87564.0,0.18492]
[1766605869753,0.01141878,87575.0,87564.0,0.18492]
[1766605869959,0.06851328,87575.0,87564.0,0.18492]
[1766605870639,0.01141891,87574.0,87564.0,0.18492]
[1766605872048,0.07995328,87575.0,87564.0,0.18492]
[1766605872251,0.01141904,87573.0,87564.0,0.18492]
[1766605872420,0.01141943,87570.0,87564.0,0.174029]
[1766605872620,0.06851632,87571.0,87564.0,0.174029]
[1766605872843,0.05709734,87570.0,87564.0,0.174029]
[1766605873047,0.06851632,87571.0,87564.0,0.174029]
[1766605873407,0.0114193,87571.0,87564.0,0.174029]
[1766605873647,0.01141943,87570.0,87564.0,0.174029]
[1766605873845,0.06851591,87571.0,87564.0,0.174029]
[1766605874079,0.01141943,87570.0,87564.0,0.174029]
[1766605874288,0.06851591,87571.0,87564.0,0.174029]
[1766605874923,0.0114193,87571.0,87564.0,0.174029]
[1766605876456,0.0685152,87572.0,87564.0,0.174029]
[1766605876746,0.0114193,87571.0,87564.0,0.174029]
[1766605877201,0.06166242,87600.0,87575.0,0.01141878]
[1766605877202,0.03082498,87592.0,87575.0,0.01141878]
[1766605877411,0.04116264,87599.0,87571.0,0.00055]
[1766605877412,0.01141578,87598.0,87582.0,0.17348]
[1766605877623,0.01141578,87598.0,87580.0,0.01141813]
[1766605877624,0.01144,87599.0,87584.0,0.17348]
[1766605877841,0.00024994,87600.0,87594.0,0.17348]
[1766605878701,5.295e-05,87597.0,87594.0,0.17348]
[1766605878907,9.5e-07,87597.0,87594.0,0.2419777]
[1766605879113,9.5e-07,87597.0,87595.0,0.17348]
[1766605880402,9.5e-07,87597.0,87596.0,0.17348]
[1766605883712,9.5e-07,87597.0,87596.0,0.23056023]
[1766605884303,9.5e-07,87597.0,87596.0,0.17348]
[1766605890376,9.5e-07,87597.0,87596.0,0.173429]
[1766605894150,9.5e-07,87597.0,87591.0,0.01144]
[1766605894376,9.5e-07,87597.0,87592.0,0.01144]
[1766605894580,9.5e-07,87597.0,87585.0,0.16381]
[1766605894752,9.5e-07,87597.0,87588.0,0.01141708]
[1766605894971,9.5e-07,87597.0,87587.0,0.17522721]
[1766605895175,9.5e-07,87597.0,87588.0,0.17522708]
[1766605895374,9.5e-07,87597.0,87590.0,0.01141682]
[1766605895612,9.5e-07,87597.0,87589.0,0.01141695]
[1766605895613,9.5e-07,87597.0,87588.0,0.17522708]
[1766605895811,9.5e-07,87597.0,87589.0,0.01141695]
[1766605896732,9.5e-07,87597.0,87588.0,0.23231243]
[1766605896937,9.5e-07,87597.0,87589.0,0.01141695]
[1766605897139,9.5e-07,87597.0,87588.0,0.23231238]
[1766605897341,9.5e-07,87597.0,87589.0,0.01141695]
[1766605897722,9.5e-07,87597.0,87588.0,0.16381]
[1766605897931,9.5e-07,87597.0,87586.0,0.01144]
[1766605897932,0.00055,87588.0,87586.0,0.01144]
[1766605898247,0.00055,87588.0,87579.0,0.01141826]
[1766605898248,0.00055,87588.0,87583.0,0.01144]
[1766605898389,0.01141617,87595.0,87583.0,0.01144]
[1766605899563,0.0114163,87594.0,87583.0,0.01144]
[1766605899962,0.0684976,87595.0,87583.0,0.01144]
[1766605900176,0.01141617,87595.0,87583.0,0.01144]
[1766605900395,0.0114163,87594.0,87583.0,0.01144]
[1766605900562,0.06849715,87595.0,87583.0,0.01144]
[1766605900764,0.01141604,87596.0,87583.0,0.02285774]
[1766605900978,0.07993646,87597.0,87583.0,0.18666774]
[1766605901183,0.01141617,87595.0,87583.0,0.17525]
[1766605901523,0.0684971,87595.0,87583.0,0.17525]
[1766605901701,0.06849653,87596.0,87583.0,0.18666774]
[1766605901878,0.01141617,87595.0,87583.0,0.17525]
[1766605902992,0.00016117,87588.0,87583.0,0.17525]
[1766605904590,0.00016117,87588.0,87583.0,0.01144]
[1766605906954,1.7e-07,87588.0,87583.0,0.02285774]
[1766605907111,1.7e-07,87588.0,87585.0,0.19096]
[1766605907314,1.7e-07,87588.0,87587.0,0.19096]
[1766605907747,1.7e-07,87588.0,87587.0,0.24804609]
[1766605907916,1.7e-07,87588.0,87587.0,0.19096]
[1766605909964,9.5e-07,87597.0,87587.0,0.19096]
[1766605910319,9.5e-07,87597.0,87589.0,0.01141695]
[1766605910661,9.5e-07,87597.0,87588.0,0.19096]
[1766605911223,9.5e-07,87597.0,87584.0,0.05708798]
[1766605911446,0.000161,87588.0,87580.0,0.19096]
[1766605911645,0.06849725,87595.0,87581.0,0.05709]
[1766605912060,0.0114163,87594.0,87581.0,0.068508]
[1766605912403,0.0114163,87594.0,87582.0,0.01141787]
[1766605913030,9.5e-07,87597.0,87584.0,0.19096]
[1766605913233,0.01144095,87597.0,87586.0,0.20237734]
[1766605913366,0.01144095,87597.0,87587.0,0.19096]
[1766605918437,9.5e-07,87597.0,87587.0,0.19096]
[1766605919866,9.5e-07,87597.0,87587.0,0.20237721]
[1766605920034,9.5e-07,87597.0,87587.0,0.19096]
[1766605921771,9.5e-07,87597.0,87589.0,0.21185]
[1766605923365,0.00970002,87600.0,87589.0,0.21185]
[1766605923588,0.01005369,87600.0,87589.0,0.21185]
[1766605923765,0.05707837,87599.0,87589.0,0.21185]
[1766605923988,0.01141604,87596.0,87588.0,0.01144]
[1766605924164,0.0684948,87598.0,87588.0,0.01144]
[1766605924365,0.07993395,87599.0,87588.0,0.01144]
[1766605924612,0.0684948,87598.0,87588.0,0.01144]
[1766605924767,0.01141578,87598.0,87588.0,0.01144]
[1766605925171,0.02285565,87599.0,87588.0,0.01144]
[1766605925784,0.01144,87599.0,87588.0,0.01144]
[1766605926191,0.02285565,87599.0,87588.0,0.01144]
[1766605926398,0.07993408,87599.0,87588.0,0.01144]
[1766605926626,0.06849566,87597.0,87588.0,0.01144]
[1766605926851,0.01141604,87596.0,87588.0,0.01144]
[1766605927182,0.06849524,87598.0,87588.0,0.01144]
[1766605929566,0.05708011,87597.0,87588.0,0.01144]
[1766605929784,0.06849602,87597.0,87588.0,0.01144]
[1766605933885,0.01141604,87596.0,87588.0,0.01144]
[1766605934725,0.01141617,87595.0,87588.0,0.01144]
[1766605935221,0.01141591,87597.0,87583.0,0.01144]
[1766605935222,0.00055,87588.0,87583.0,0.01144]
[1766605935425,0.01141669,87591.0,87580.0,0.21012999]
[1766605935622,0.06849973,87592.0,87582.0,0.01144]
[1766605936363,0.06849971,87593.0,87582.0,0.01144]
[1766605937063,0.07993791,87594.0,87582.0,0.01144]
[1766605937268,0.01144,87594.0,87583.0,0.01141774]
[1766605937442,0.01144,87594.0,87583.0,0.06850599]
[1766605937624,0.01144,87594.0,87585.0,0.05708728]
[1766605938164,0.01144,87594.0,87585.0,0.21185]
[1766605938579,0.01144,87594.0,87585.0,0.22326748]
[1766605938875,0.01144,87594.0,87585.0,0.21185]
[1766605939288,0.01144,87594.0,87585.0,0.22326748]
[1766605939493,0.01144,87594.0,87585.0,0.21185]
[1766605939700,0.01144,87594.0,87585.0,0.22326748]
[1766605939898,0.01144,87594.0,87585.0,0.21185]
[1766605940521,0.0228563,87594.0,87585.0,0.21185]
[1766605940707,0.01141656,87592.0,87582.0,0.01144]
[1766605940924,0.01141669,87591.0,87582.0,0.01144]
[1766605941271,0.01141643,87593.0,87582.0,0.01144]
[1766605941272,0.06849972,87593.0,87582.0,0.01144]
[1766605941472,0.01141643,87593.0,87582.0,0.01144]
[1766605941671,0.07993797,87594.0,87582.0,0.01144]
[1766605943722,0.01144,87594.0,87582.0,0.02285787]
[1766605944219,0.0228563,87594.0,87582.0,0.01144]
[1766605944419,0.05708266,87593.0,87582.0,0.01144]
[1766605944622,0.0684999,87592.0,87582.0,0.01144]
[1766605944822,0.01141643,87593.0,87582.0,0.01144]
[1766605944993,0.07993893,87594.0,87582.0,0.01144]
[1766605945198,0.07993893,87594.0,87583.0,0.21185]
[1766605945418,0.01144,87594.0,87583.0,0.21185]
[1766605945827,0.01144,87594.0,87577.0,0.21185]
[1766605945828,0.01141708,87588.0,87577.0,0.21185]
[1766605946007,0.06850225,87589.0,87577.0,0.21185]
[1766605946209,0.01141695,87589.0,87577.0,0.22329]
[1766605946408,0.01141695,87589.0,87577.0,0.23470852]
[1766605946810,0.06850119,87590.0,87577.0,0.23470852]
[1766605947041,0.01141695,87589.0,87577.0,0.22329]
[1766605947186,0.01141695,87589.0,87577.0,0.23470852]
[1766605947806,0.06850119,87590.0,87577.0,0.23470852]
[1766605948283,0.01141695,87589.0,87577.0,0.22329]
[1766605948434,0.06850381,87588.0,87577.0,0.01144]
[1766605948830,0.01141708,87588.0,87577.0,0.01144]
[1766605949025,0.07994178,87589.0,87577.0,0.01144]
[1766605949235,0.01141708,87588.0,87577.0,0.01144]
[1766605949469,0.01144,87589.0,87577.0,0.02285852]
[1766605949693,0.01144,87589.0,87578.0,0.01141839]
[1766605949901,0.01144,87589.0,87579.0,0.01141826]
[1766605950301,0.01144,87589.0,87578.0,0.06850987]
[1766605950703,0.06849877,87593.0,87579.0,0.05709105]
[1766605950986,0.01144,87592.0,87579.0,0.05709105]
[1766605951411,0.07993942,87592.0,87579.0,0.06850931]
[1766605951621,0.01141669,87591.0,87578.0,0.06850987]
[1766605952154,0.01144,87592.0,87579.0,0.05709102]
[1766605952328,0.06849877,87593.0,87579.0,0.05709102]
[1766605952527,0.01144,87591.0,87579.0,0.05709102]
[1766605952909,0.02285669,87591.0,87578.0,0.06851034]
[1766605953112,0.01144,87591.0,87580.0,0.01141813]
[1766605953522,0.01144,87591.0,87580.0,0.06850878]
[1766605953729,0.01144,87591.0,87580.0,0.01141813]
[1766605953900,0.01144,87591.0,87579.0,0.06850934]
[1766605955533,0.01144,87591.0,87578.0,0.06851016]
[1766605955534,0.07994021,87591.0,87578.0,0.06851016]
[1766605955755,0.02285669,87591.0,87578.0,0.06851003]
[1766605955960,0.01141682,87590.0,87577.0,0.07995112]
[1766605956131,0.06850121,87590.0,87577.0,0.01144]
[1766605956479,0.06850209,87589.0,87577.0,0.2534]
[1766605956708,0.01141708,87588.0,87577.0,0.2534]
[1766605956933,0.01141721,87587.0,87577.0,0.2534]
[1766605957149,0.01144,87586.0,87577.0,0.2534]
[1766605957691,0.01141708,87588.0,87577.0,0.2534]
[1766605957897,0.01141708,87588.0,87573.0,0.01141904]
[1766605957898,0.01141787,87582.0,87570.0,0.24196]
[1766605958109,0.00055,87577.0,87570.0,0.24196]
[1766605958503,0.05764316,87577.0,87570.0,0.24196]
[1766605958712,0.01144,87577.0,87564.0,0.24196]
[1766605958885,0.01141865,87576.0,87564.0,0.24196]
[1766605959334,0.01144,87577.0,87572.0,0.01141917]
[1766605959545,0.01144,87577.0,87576.0,0.000549]
[1766605959951,0.01144,87577.0,87573.0,0.01141904]
[1766605960157,0.01144,87577.0,87572.0,0.06851481]
[1766605960547,0.01141721,87587.0,87573.0,0.01141904]
[1766605960746,0.01141695,87589.0,87577.0,0.000549]
[1766605960747,0.01144,87586.0,87577.0,0.000549]
[1766605960905,0.01144,87586.0,87575.0,0.24196]
[1766605961088,0.01144,87585.0,87575.0,0.24196]
[1766605963530,0.01141761,87584.0,87575.0,0.24196]
[1766605964145,0.02285748,87585.0,87575.0,0.24196]
[1766605964570,0.01141761,87584.0,87575.0,0.24196]
[1766605964770,0.07994535,87585.0,87575.0,0.24196]
[1766605964936,0.01141761,87584.0,87575.0,0.24196]
[1766605965560,0.06850679,87583.0,87575.0,0.24196]
[1766605965767,0.06850593,87584.0,87575.0,0.24196]
[1766605965967,0.01141774,87583.0,87575.0,0.24196]
[1766605966802,0.07994499,87585.0,87575.0,0.24196]
[1766605967368,0.01141761,87584.0,87575.0,0.24196]
[1766605967570,0.01141774,87583.0,87575.0,0.24196]
[1766605968467,0.06850569,87584.0,87575.0,0.24196]
[1766605969115,0.01141774,87583.0,87575.0,0.24196]
[1766605969659,0.01141787,87582.0,87575.0,0.24196]
[1766605970019,0.01141774,87583.0,87575.0,0.24196]
[1766605970828,0.06850664,87583.0,87575.0,0.24196]
[1766605971145,0.06850569,87584.0,87575.0,0.24196]
[1766605971347,0.01141787,87582.0,87575.0,0.24196]
[1766605971730,0.01141761,87584.0,87575.0,0.24196]
[1766605972353,0.01141774,87583.0,87575.0,0.24196]
[1766605972530,0.06850677,87583.0,87575.0,0.24196]
[1766605972730,0.01141774,87583.0,87575.0,0.24196]
[1766605972953,0.01141787,87582.0,87575.0,0.24196]
[1766605973148,0.06850687,87583.0,87575.0,0.24196]
[1766605973359,0.06850579,87584.0,87575.0,0.24196]
[1766605973959,0.06850674,87583.0,87575.0,0.24196]
[1766605974571,0.01141734,87586.0,87575.0,0.24196]
[1766605974572,0.02285734,87586.0,87575.0,0.24196]
[1766605974774,0.01141748,87585.0,87575.0,0.24196]
[1766605974974,0.01141761,87584.0,87575.0,0.24196]
[1766605975292,0.06850492,87585.0,87575.0,0.24196]
[1766605975694,0.07994533,87586.0,87575.0,0.24196]
[1766605975895,0.06850489,87585.0,87575.0,0.24196]
[1766605976107,0.01141748,87585.0,87575.0,0.24196]
[1766605976309,0.01141761,87584.0,87575.0,0.24196]
[1766605976505,0.07994458,87586.0,87575.0,0.24196]
[1766605976705,0.06850537,87585.0,87575.0,0.24196]
[1766605976873,0.01141748,87585.0,87575.0,0.24196]
[1766605977075,0.01141761,87584.0,87575.0,0.24196]
[1766605977275,0.06850572,87584.0,87575.0,0.24196]
[1766605977473,0.01141774,87583.0,87575.0,0.24196]
[1766605978362,0.06850572,87584.0,87575.0,0.24196]
[1766605978659,0.05708877,87583.0,87575.0,0.24196]
[1766605979040,0.01141774,87583.0,87575.0,0.24196]
[1766605979249,0.06850572,87584.0,87575.0,0.24196]
[1766605979817,0.068506,87585.0,87575.0,0.24196]
[1766605980188,0.01141761,87584.0,87575.0,0.24196]
[1766605980947,0.01141748,87585.0,87575.0,0.24196]
[1766605981358,0.01144,87586.0,87575.0,0.24196]
[1766605981559,0.01144,87586.0,87576.0,0.28679]
[1766605984385,0.01144,87586.0,87576.0,0.29820865]
[1766605985036,0.01144,87586.0,87578.0,0.28679]
[1766605986574,0.06850302,87588.0,87578.0,0.28679]
[1766605986929,0.07994366,87587.0,87578.0,0.28679]
[1766605987351,0.01141748,87585.0,87578.0,0.28679]
[1766605987737,0.01141734,87586.0,87578.0,0.28679]
[1766605987930,0.01141748,87585.0,87578.0,0.28679]
[1766605988364,0.06850524,87585.0,87578.0,0.28679]
[1766605988769,0.01141761,87584.0,87578.0,0.28679]
[1766605988976,0.01141748,87585.0,87578.0,0.28679]
[1766605989334,0.06850426,87586.0,87578.0,0.28679]
[1766605989533,0.01141748,87585.0,87578.0,0.28679]
[1766605989986,0.06850491,87585.0,87578.0,0.28679]
[1766605990351,0.06850426,87586.0,87578.0,0.28679]
[1766605990895,0.01141734,87586.0,87578.0,0.28679]
[1766605991198,0.10462236,87587.0,87578.0,0.28679]
[1766605991397,0.06850467,87586.0,87578.0,0.28679]
[1766605992205,0.07994338,87587.0,87578.0,0.28679]
[1766605992408,0.10462245,87587.0,87578.0,0.28679]
[1766605992712,0.10462245,87587.0,87574.0,0.01141891]
[1766605992713,0.03611907,87587.0,87579.0,0.28679]
[1766605992945,0.01144,87587.0,87579.0,0.28679]
[1766605993151,0.02467907,87591.0,87579.0,0.28679]
[1766605993325,0.02467907,87591.0,87577.0,0.01141852]
[1766605993326,0.01144,87590.0,87587.0,0.000549]
[1766605993579,0.06857496,87588.0,87586.0,0.11591892]
[1766605993785,0.07999204,87588.0,87576.0,0.29823]
[1766605993986,0.01196634,87586.0,87576.0,0.29823]
[1766605994379,0.06850418,87586.0,87576.0,0.29823]
[1766605994663,0.0685038,87587.0,87576.0,0.29823]
[1766605994998,0.01141734,87586.0,87576.0,0.29823]
[1766605995215,0.01141734,87586.0,87576.0,0.28679]
[1766605995420,0.0685038,87587.0,87576.0,0.28679]
[1766605995876,0.13707869,87588.0,87576.0,0.28679]
[1766605995877,0.06857496,87588.0,87576.0,0.28679]
[1766605996082,0.07999204,87588.0,87576.0,0.28679]
[1766605996297,0.13707749,87588.0,87576.0,0.28679]
[1766605996472,0.01141721,87587.0,87576.0,0.28679]
[1766605997302,0.01141734,87586.0,87576.0,0.28679]
[1766605998234,0.06850359,87587.0,87576.0,0.28679]
[1766605998462,0.13707749,87588.0,87576.0,0.28679]
[1766605999180,0.01141721,87587.0,87576.0,0.28679]
[1766605999388,0.01141734,87586.0,87576.0,0.28679]
[1766606000222,0.01141721,87587.0,87576.0,0.28679]
[1766606000652,0.13707749,87588.0,87577.0,0.01141852]
[1766606000653,0.06857496,87588.0,87577.0,0.01141852]
[1766606001054,0.06857496,87588.0,87576.0,0.29820865]
[1766606002127,0.07999204,87588.0,87576.0,0.28679]
[1766606002326,0.01141721,87587.0,87576.0,0.28679]
[1766606002586,0.13707781,87588.0,87576.0,0.28679]
[1766606004256,0.01141721,87587.0,87576.0,0.28679]
[1766606004468,0.13707781,87588.0,87576.0,0.28679]
[1766606004698,0.06857496,87588.0,87576.0,0.28679]
[1766606004850,0.06857496,87588.0,87576.0,0.29820865]
[1766606005049,0.07999204,87588.0,87576.0,0.29820865]
[1766606005602,0.06857496,87588.0,87576.0,0.35530167]
[1766606006000,0.07999204,87588.0,87576.0,0.35530167]
[1766606006236,0.01141721,87587.0,87576.0,0.28679]
[1766606006416,0.06857496,87588.0,87576.0,0.29820865]
[1766606006847,0.07999204,87588.0,87576.0,0.28679]
[1766606007038,0.06857496,87588.0,87581.0,0.011418]
[1766606007180,0.01144,87590.0,87580.0,0.05709014]
[1766606007393,0.01144,87590.0,87580.0,0.3552987]
[1766606007604,0.01144,87590.0,87580.0,0.28679]
[1766606007949,0.01144,87590.0,87580.0,0.35529847]
[1766606008113,0.01144,87590.0,87580.0,0.29820813]
[1766606008317,0.01144,87590.0,87580.0,0.28679]
[1766606008500,0.01144,87590.0,87580.0,0.29820813]
[1766606008918,0.01144,87590.0,87580.0,0.28679]
[1766606009120,0.01144,87590.0,87580.0,0.29820813]
[1766606009337,0.01144,87590.0,87580.0,0.28679]
[1766606009693,0.01144,87590.0,87580.0,0.29820813]
[1766606010083,0.01144,87590.0,87580.0,0.3552987]
[1766606010283,0.01144,87590.0,87582.0,0.28858]
[1766606014955,0.02285682,87590.0,87582.0,0.28858]
[1766606017286,0.01141695,87589.0,87582.0,0.28858]
[1766606017689,0.04753739,87590.0,87582.0,0.28858]
[1766606017876,0.07994105,87590.0,87582.0,0.28858]
[1766606018070,0.04753739,87590.0,87582.0,0.28858]
[1766606018326,0.02285682,87590.0,87582.0,0.28858]
[1766606018515,0.01141734,87586.0,87575.0,0.01144]
[1766606018832,0.06850578,87584.0,87575.0,0.01144]
[1766606019019,0.06850574,87584.0,87575.0,0.01144]
[1766606019370,0.06850574,87584.0,87569.0,0.06851736]
[1766606019371,0.00055,87575.0,87565.0,0.28858]
[1766606019571,0.00055,87575.0,87566.0,0.02285995]
[1766606019817,0.00055,87575.0,87566.0,0.01144]
[1766606020046,0.00055,87575.0,87567.0,0.01141982]
[1766606020350,0.07994801,87581.0,87568.0,0.01141969]
[1766606020531,0.07994801,87581.0,87569.0,0.01141956]
[1766606020742,0.07994801,87581.0,87568.0,0.06851808]
[1766606020908,0.022858,87581.0,87569.0,0.05709775]
[1766606021112,0.022858,87581.0,87569.0,0.01141956]
[1766606021439,0.01144,87581.0,87568.0,0.01141969]
[1766606021609,0.0685301,87581.0,87568.0,0.01141969]
[1766606021810,0.01144,87581.0,87568.0,0.0685176]
[1766606022009,0.022858,87581.0,87569.0,0.01141956]
[1766606022351,0.022858,87581.0,87568.0,0.0685176]
[1766606022965,0.01141813,87580.0,87568.0,0.0685176]
[1766606023261,0.022858,87581.0,87568.0,0.0685176]
[1766606023462,0.01144,87581.0,87569.0,0.01141956]
[1766606023670,0.022858,87581.0,87569.0,0.01141956]
[1766606023879,0.07994809,87581.0,87568.0,0.0685176]
[1766606024027,0.022858,87581.0,87568.0,0.0685176]
[1766606024236,0.01144,87581.0,87570.0,0.01141943]
[1766606024464,0.01144,87581.0,87569.0,0.06851739]
[1766606025129,0.022858,87581.0,87569.0,0.06851739]
[1766606025290,0.022858,87581.0,87569.0,0.01141956]
[1766606025636,0.07994803,87581.0,87568.0,0.0685176]
[1766606026424,0.022858,87581.0,87569.0,0.01141956]
[1766606026622,0.01141813,87580.0,87568.0,0.0685176]
[1766606026788,0.022858,87581.0,87568.0,0.0685176]
[1766606027451,0.01141813,87580.0,87568.0,0.01141969]
[1766606027654,0.06850881,87580.0,87567.0,0.06851894]
[1766606027971,0.01141813,87580.0,87568.0,0.01141969]
[1766606028097,0.07994865,87581.0,87568.0,0.01141969]
[1766606028534,0.01141813,87580.0,87568.0,0.02285969]
[1766606028750,0.07994865,87581.0,87568.0,0.02285969]
[1766606029373,0.05709131,87579.0,87568.0,0.01144]
[1766606029573,0.01141826,87579.0,87568.0,0.01144]
[1766606029864,0.06850897,87580.0,87568.0,0.01144]
[1766606030797,0.06850897,87580.0,87568.0,0.02285969]
[1766606031613,0.01141826,87579.0,87568.0,0.01144]
[1766606031997,0.06850897,87580.0,87568.0,0.02285969]
[1766606032249,0.07994802,87581.0,87568.0,0.02285969]
[1766606032491,0.01141826,87579.0,87568.0,0.01144]
[1766606032852,0.06850933,87580.0,87568.0,0.01144]
[1766606033050,0.01141839,87578.0,87568.0,0.01144]
[1766606033754,0.01141852,87577.0,87568.0,0.01144]
[1766606034138,0.06851131,87577.0,87568.0,0.01144]
[1766606034339,0.06851045,87578.0,87568.0,0.01144]
[1766606035158,0.01141865,87576.0,87568.0,0.01144]
[1766606035362,0.06850962,87579.0,87568.0,0.01144]
[1766606035560,0.06850962,87579.0,87568.0,0.31132]
[1766606036371,0.06850885,87580.0,87568.0,0.31132]
[1766606036596,0.01141813,87580.0,87568.0,0.31132]
[1766606036794,0.01141813,87580.0,87568.0,0.32273969]
[1766606036971,0.07994845,87581.0,87569.0,0.01141956]
[1766606037166,0.07994845,87581.0,87569.0,0.29988]
[1766606037534,0.05709088,87580.0,87569.0,0.29988]
[1766606037756,0.07994852,87581.0,87569.0,0.29988]
[1766606037964,0.06850888,87580.0,87569.0,0.29988]
[1766606038374,0.01141813,87580.0,87569.0,0.29988]
[1766606038527,0.01141826,87579.0,87569.0,0.29988]
[1766606038934,0.01141813,87580.0,87569.0,0.29988]
[1766606039459,0.07994852,87581.0,87569.0,0.29988]
[1766606041286,0.01141813,87580.0,87569.0,0.29988]
[1766606041495,0.06850979,87579.0,87569.0,0.29988]
[1766606042034,0.07994888,87580.0,87569.0,0.29988]
[1766606042193,0.06850967,87579.0,87569.0,0.29988]
[1766606042396,0.07994888,87580.0,87569.0,0.29988]
[1766606043544,0.01141839,87578.0,87569.0,0.29988]
[1766606043747,0.07994888,87580.0,87569.0,0.29988]
[1766606044389,0.02285813,87580.0,87569.0,0.29988]
[1766606044796,0.07994929,87580.0,87569.0,0.29988]
[1766606045008,0.02285813,87580.0,87569.0,0.29988]
[1766606045143,0.06853077,87580.0,87569.0,0.29988]
[1766606045339,0.01144,87580.0,87569.0,0.31129956]
[1766606045542,0.01144,87579.0,87569.0,0.29988]
[1766606045939,0.01144,87579.0,87569.0,0.31129956]